Workbook

Sheet Taul1
A1: Tällä excelillä saat tehtyä 40 satunnaista yhteen-, vähennyslaskua ja kertolaskua. | N1: Lasku nro | O1: Yhteenlaskettavia numeroita | R1: Kerrottavia | U1: Lasku nro | V1: Yhteenlaskettavia numeroita | Y1: Kerrottavia
A2: Versio | C2: 3.0b - makroversio | F2: Julkaistu | H2: 2016-02-17 | O2: 1 | P2: 2 | Q2: 3 | R2: 1 | S2: 2 | V2: 1 | W2: 2 | X2: 3 | Y2: 1 | Z2: 2
BP3: - Jos haluat laskuihin alle 1 olevia desimaalilukuja, voit määritellä lukujen minimin ykköstä pienemmäksi. Esimerkki vieressä olevassa kuvassa. * Myös desimaalien määrän pitää tällöin olla sellainen, että lukuja voi muodostaa. - Jos haluat käsin muokata yksittäisiä laskuja, voit kopioida tulostettavan alueen ja liittää sen wordiin * Wordissa pitää säätää reunukset kapeiksi, jotta sisältö mahtuu. * Muista muuttaa myös vastaus, jos muutat jotain tehtävää wordissa. * Hyvä muokattu moniste kannattaa tallentaa kuvaavalla nimellä, jotta seuraavalla kerralla ei tarvitse tehdä käsinmuokkausta. - Jos haluat päästä muokkaamaan suoraan excelissä lukuja, voit käyttää makroversiota. - Korjaus/kehitysehdotukset janne.koponen@tampere.fi - http://koulut.tampere.fi/hatanpaa/matikka/monisteita/
A4: Yhteen- ja väh.-laskut | C4: Luvut | E4: Desimaalit
C5: Min | D5: Max | E5: Min | F5: Max | H5: Laskutyypit | J5: Sivu1 | K5: Sivu2 | L5: Sivu3 | M5: Sivu4 | O5: - Vain harmaisiin soluihin voi tehdä muokkauksia - Uudet arvot laskuihin arvotaan, kun painat pikanäppäinyhdistelmää CTRL + K * Tämän jälkeen yksittäisiä arvoja voi vielä muuttaa * Jos painat uudelleen CTRL + K arvotaan kaikki taas uudestaan, eli muokkaukset eivät säily - Jos haluat säilyttää hyvän version, voi sen tallentaa pdf-muodossa tai kopioida Wordiin. Excelinkin voi tallentaa uudella nimellä, jolloin arvot säilyvät ja voit vielä myöhemminkin parannella monistetta - Jos haluat laskuihin alle 1 olevia desimaalilukuja, voit määritellä lukujen minimin ykköstä pienemmäksi. Esimerkki vieressä olevassa kuvassa. * Myös desimaalien määrän pitää tällöin olla sellainen, että lukuja voi muodostaa. - Korjaus/kehitysehdotukset janne.koponen@tampere.fi - https://peda.net/p/joykop/mm | AP5: Tyyppi | AT5: normi | AU5: muokattu
A6: Luvut sivu1 | C6: 1 | D6: 100 | E6: 0 | F6: 0 | G6: 1. | H6: a + b | J6: x | K6: x | L6: x | M6: x | AP6: =IF(OR(ISBLANK(J6),J6=0),0,1) -> 1 | AQ6: =IF(OR(ISBLANK(K6),K6=0),0,1) -> 1 | AR6: =IF(OR(ISBLANK(L6),L6=0),0,1) -> 1 | AS6: =IF(OR(ISBLANK(M6),M6=0),0,1) -> 1 | AT6: 1 | AU6: =RANK($AT6,AP$6:AP$16,1) -> 1 | AV6: 1 | AW6: 1 | AX6: 1
A7: Luvut sivu2 | C7: 1 | D7: 100 | E7: 0 | F7: 0 | G7: 2. | H7: a − b | J7: x | K7: x | L7: x | M7: x | AP7: =IF(OR(ISBLANK(J7),J7=0),AP6,AP6+1) -> 2 | AQ7: 2 | AR7: 2 | AS7: 2 | AT7: 2 | AU7: 2 | AV7: 2 | AW7: 2 | AX7: 2
A8: Luvut sivu3 | C8: 1 | D8: 100 | E8: 0 | F8: 0 | G8: 3. | H8: a + b + c | K8: x | L8: x | M8: x | AP8: 2 | AQ8: 3 | AR8: 3 | AS8: 3 | AT8: 3 | AV8: 3 | AW8: 3 | AX8: 3
A9: Luvut sivu4 | C9: 1 | D9: 100 | E9: 0 | F9: 0 | G9: 4. | H9: a · b | AP9: 2 | AQ9: 3 | AR9: 3 | AS9: 3 | AT9: 4
A11: Kertolaskut | D11: Luku1 | F11: Luku2 | I11: Desimaalit
D12: Min1 | E12: max1 | F12: Min2 | G12: max2 | I12: Min | J12: Max
A13: Kerrottavat sivu1 | D13: 1 | E13: 100 | F13: 1 | G13: 200 | I13: 0 | J13: 0
A14: Kerrottavat sivu2 | D14: 1 | E14: 100 | F14: 1 | G14: 1000 | I14: 0 | J14: 0
A15: Kerrottavat sivu3 | D15: 1 | E15: 100 | F15: 1 | G15: 1000 | I15: 0 | J15: 0
A16: Kerrottavat sivu4 | D16: 1 | E16: 100 | F16: 1 | G16: 1000 | I16: 0 | J16: 0
A18: Vastaukset loppuun | D18: 1 | E18: (0 = ei, 1 = kyllä)
A19: Tulostuva alue alkaa | O19: Yhteenlaskettavia numeroita | R19: Kerrottavia | V19: Yhteenlaskettavia numeroita | Y19: Kerrottavia | AC19: Yhteenlaskettavia numeroita | AF19: Kerrottavia | AJ19: Yhteenlaskettavia numeroita | AM19: Kerrottavia | AS19: Arvottuja laskuvaihtoehtoja | AX19: Desimaalit | BA19: Desimaalit | BE19: Arvottuja laskuvaihtoehtoja | BI19: Desimaalit | BL19: Desimaalit
A20: Laske allekkain | M20: Sivu1 | N20: Laskunro | O20: 1 | P20: 2 | Q20: 3 | R20: 1 | S20: 2 | U20: Laskunro | V20: 1 | W20: 2 | X20: 3 | Y20: 1 | Z20: 2 | AB20: Laskunro | AC20: 1 | AD20: 2 | AE20: 3 | AF20: 1 | AG20: 2 | AI20: Laskunro | AJ20: 1 | AK20: 2 | AL20: 3 | AM20: 1 | AN20: 2 | AR20: Arpa | AS20: 1 | AT20: 2 | AU20: 3 | AV20: 4 | AW20: 5 | AX20: 1 | AY20: 2 | AZ20: 3 | BA20: 1 | BB20: 2 | BD20: Arpa | BE20: 1 | BF20: 2 | BG20: 3 | BH20: 4 | BI20: 1 | BJ20: 2 | BK20: 3 | BL20: 1 | BM20: 2
A21: 1. | B21: =INDEX(AS21:AW21,,N21) -> 42 − 29 = | G21: 6. | H21: =INDEX(BE21:BH21,,U21) -> 100 + 52 = | N21: 2 | O21: 29 | P21: 42 | Q21: 34 | R21: 88 | S21: 79 | U21: 1 | V21: 100 | W21: 52 | X21: 98 | Y21: 87 | Z21: 68 | AB21: =INDEX($AT$6:$AT$9,INDEX($AU$6:$AU$9,AR21)) -> 2 | AC21: =RANDBETWEEN($C$6*10^AX21,$D$6*10^AX21)*10^-AX21 -> 92 | AD21: =RANDBETWEEN($C$6*10^AY21,$D$6*10^AY21)*10^-AY21 -> 2 | AE21: 72 | AF21: =RANDBETWEEN($D$13*10^BA21,$E$13*10^BA21)*10^-BA21 -> 77 | AG21: =RANDBETWEEN($D$13*10^BB21,$E$13*10^BB21)*10^-BB21 -> 1 | AI21: =INDEX($AT$6:$AT$9,INDEX($AU$6:$AU$9,BD21)) -> 2 | AJ21: =RANDBETWEEN($C$6*10^BI21,$D$6*10^BI21)*10^-BI21 -> 57 | AK21: 66 | AL21: 77 | AM21: =RANDBETWEEN($D$13*10^BL21,$E$13*10^BL21)*10^-BL21 -> 13 | AN21: 82 | AR21: =RANDBETWEEN(1,$AP$9) -> 2 | AS21: =CONCATENATE(O21, " + ",P21," = ") -> 29 + 42 = | AT21: =IF(O21-P21>0,CONCATENATE(O21, " − ",P21," = "),CONCATENATE(P21, " − ",O21," = ")) -> 42 − 29 = | AU21: =CONCATENATE(O21, " + ",P21, " + ",Q21," = ") -> 29 + 42 + 34 = | AV21: =CONCATENATE(R21, " · ",S21," = ") -> 88 · 79 = | AW21: =CONCATENATE(P21, " − ",O21," = ") -> 42 − 29 = | AX21: =RANDBETWEEN($E$6,$F$6) -> 0 | AY21: =RANDBETWEEN($E$6,$F$6) -> 0 | AZ21: 0 | BA21: =RANDBETWEEN($I$13,$J$13) -> 0 | BB21: =RANDBETWEEN($I$13,$J$13) -> 0 | BD21: =RANDBETWEEN(1,$AP$9) -> 2 | BE21: =CONCATENATE(V21, " + ",W21," = ") -> 100 + 52 = | BF21: =IF(V21-W21>0,CONCATENATE(V21, " − ",W21," = "),CONCATENATE(W21, " − ",V21," = ")) -> 100 − 52 = | BG21: =CONCATENATE(V21, " + ",W21, " + ",X21," = ") -> 100 + 52 + 98 = | BH21: =CONCATENATE(Y21, " · ",Z21," = ") -> 87 · 68 = | BI21: =RANDBETWEEN($E$6,$F$6) -> 0 | BJ21: =RANDBETWEEN($E$6,$F$6) -> 0 | BK21: 0 | BL21: =RANDBETWEEN($I$13,$J$13) -> 0 | BM21: =RANDBETWEEN($I$13,$J$13) -> 0
A22: 2. | B22: 78 − 53 = | G22: 7. | H22: 87 + 62 = | N22: 2 | O22: 78 | P22: 53 | Q22: 78 | R22: 30 | S22: 85 | U22: 1 | V22: 87 | W22: 62 | X22: 98 | Y22: 45 | Z22: 60 | AB22: =INDEX($AT$6:$AT$9,INDEX($AU$6:$AU$9,AR22)) -> 2 | AC22: =RANDBETWEEN($C$6*10^AX22,$D$6*10^AX22)*10^-AX22 -> 89 | AD22: =RANDBETWEEN($C$6*10^AY22,$D$6*10^AY22)*10^-AY22 -> 33 | AE22: =RANDBETWEEN($C$6*10^AZ22,$D$6*10^AZ22)*10^-AZ22 -> 81 | AF22: =RANDBETWEEN($D$13*10^BA22,$E$13*10^BA22)*10^-BA22 -> 32 | AG22: =RANDBETWEEN($D$13*10^BB22,$E$13*10^BB22)*10^-BB22 -> 22 | AI22: =INDEX($AT$6:$AT$9,INDEX($AU$6:$AU$9,BD22)) -> 2 | AJ22: 40 | AK22: 66 | AL22: 61 | AM22: 72 | AN22: 16 | AR22: =RANDBETWEEN(1,$AP$9) -> 2 | AS22: 78 + 53 = | AT22: 78 − 53 = | AU22: 78 + 53 + 78 = | AV22: 30 · 85 = | AW22: 53 − 78 = | AX22: =RANDBETWEEN($E$6,$F$6) -> 0 | AY22: 0 | AZ22: 0 | BA22: =RANDBETWEEN($I$13,$J$13) -> 0 | BB22: 0 | BD22: =RANDBETWEEN(1,$AP$9) -> 2 | BE22: 87 + 62 = | BF22: 87 − 62 = | BG22: 87 + 62 + 98 = | BH22: 45 · 60 = | BI22: =RANDBETWEEN($E$6,$F$6) -> 0 | BJ22: 0 | BK22: 0 | BL22: =RANDBETWEEN($I$13,$J$13) -> 0 | BM22: 0
A23: 3. | B23: 100 − 58 = | G23: 8. | H23: 28 − 6 = | N23: 2 | O23: 58 | P23: 100 | Q23: 34 | R23: 55 | S23: 36 | U23: 2 | V23: 6 | W23: 28 | X23: 29 | Y23: 64 | Z23: 76 | AB23: 2 | AC23: 80 | AD23: 82 | AE23: 87 | AF23: 7 | AG23: 98 | AI23: 2 | AJ23: 68 | AK23: 34 | AL23: 48 | AM23: 27 | AN23: 17 | AR23: =RANDBETWEEN(1,$AP$9) -> 2 | AS23: 58 + 100 = | AT23: 100 − 58 = | AU23: 58 + 100 + 34 = | AV23: 55 · 36 = | AW23: 100 − 58 = | AX23: 0 | AY23: 0 | AZ23: 0 | BA23: 0 | BB23: 0 | BD23: =RANDBETWEEN(1,$AP$9) -> 2 | BE23: 6 + 28 = | BF23: 28 − 6 = | BG23: 6 + 28 + 29 = | BH23: 64 · 76 = | BI23: 0 | BJ23: 0 | BK23: 0 | BL23: 0 | BM23: 0
A24: 4. | B24: 60 + 76 = | G24: 9. | H24: 51 − 19 = | N24: 1 | O24: 60 | P24: 76 | Q24: 41 | R24: 63 | S24: 79 | U24: 2 | V24: 51 | W24: 19 | X24: 79 | Y24: 2 | Z24: 10 | AB24: 2 | AC24: 33 | AD24: 78 | AE24: 51 | AF24: 86 | AG24: 68 | AI24: 2 | AJ24: 12 | AK24: 76 | AL24: 17 | AM24: 74 | AN24: 85 | AR24: =RANDBETWEEN(1,$AP$9) -> 2 | AS24: 60 + 76 = | AT24: 76 − 60 = | AU24: 60 + 76 + 41 = | AV24: 63 · 79 = | AW24: 76 − 60 = | AX24: 0 | AY24: 0 | AZ24: 0 | BA24: 0 | BB24: 0 | BD24: =RANDBETWEEN(1,$AP$9) -> 2 | BE24: 51 + 19 = | BF24: 51 − 19 = | BG24: 51 + 19 + 79 = | BH24: 2 · 10 = | BI24: 0 | BJ24: 0 | BK24: 0 | BL24: 0 | BM24: 0
A25: 5. | B25: 35 − 29 = | G25: 10. | H25: 74 − 72 = | N25: 2 | O25: 29 | P25: 35 | Q25: 83 | R25: 46 | S25: 56 | U25: 2 | V25: 74 | W25: 72 | X25: 25 | Y25: 34 | Z25: 76 | AB25: 1 | AC25: 72 | AD25: 36 | AE25: 15 | AF25: 43 | AG25: 43 | AI25: 2 | AJ25: 76 | AK25: 45 | AL25: 91 | AM25: 57 | AN25: 65 | AR25: =RANDBETWEEN(1,$AP$9) -> 1 | AS25: 29 + 35 = | AT25: 35 − 29 = | AU25: 29 + 35 + 83 = | AV25: 46 · 56 = | AW25: 35 − 29 = | AX25: 0 | AY25: 0 | AZ25: 0 | BA25: 0 | BB25: 0 | BD25: =RANDBETWEEN(1,$AP$9) -> 2 | BE25: 74 + 72 = | BF25: 74 − 72 = | BG25: 74 + 72 + 25 = | BH25: 34 · 76 = | BI25: 0 | BJ25: 0 | BK25: 0 | BL25: 0 | BM25: 0
A26: 11. | B26: 98 − 47 = | G26: 16. | H26: 65 + 66 + 81 = | M26: Sivu2 | N26: 2 | O26: 98 | P26: 47 | Q26: 1 | R26: 70 | S26: 93 | U26: 3 | V26: 65 | W26: 66 | X26: 81 | Y26: 13 | Z26: 31 | AB26: =INDEX($AT$6:$AT$9,INDEX($AV$6:$AV$9,AR26)) -> 1 | AC26: =RANDBETWEEN($C$7*10^AX26,$D$7*10^AX26)*10^-AX26 -> 61 | AD26: =RANDBETWEEN($C$7*10^AY26,$D$7*10^AY26)*10^-AY26 -> 3 | AE26: 73 | AF26: =RANDBETWEEN($D$14*10^BA26,$E$14*10^BA26)*10^-BA26 -> 46 | AG26: 62 | AI26: =INDEX($AT$6:$AT$9,INDEX($AV$6:$AV$9,BD26)) -> 2 | AJ26: =RANDBETWEEN($C$7*10^BI26,$D$7*10^BI26)*10^-BI26 -> 58 | AK26: 67 | AL26: 72 | AM26: =RANDBETWEEN($D$14*10^BL26,$E$14*10^BL26)*10^-BL26 -> 10 | AN26: 4 | AR26: =RANDBETWEEN(1,$AQ$9) -> 1 | AS26: 98 + 47 = | AT26: 98 − 47 = | AU26: 98 + 47 + 1 = | AV26: 70 · 93 = | AW26: 47 − 98 = | AX26: =RANDBETWEEN($E$7,$F$7) -> 0 | AY26: =RANDBETWEEN($E$7,$F$7) -> 0 | AZ26: 0 | BA26: =RANDBETWEEN($I$14,$J$14) -> 0 | BB26: =RANDBETWEEN($I$14,$J$14) -> 0 | BD26: =RANDBETWEEN(1,$AQ$9) -> 2 | BE26: 65 + 66 = | BF26: 66 − 65 = | BG26: 65 + 66 + 81 = | BH26: 13 · 31 = | BI26: =RANDBETWEEN($E$7,$F$7) -> 0 | BJ26: =RANDBETWEEN($E$7,$F$7) -> 0 | BK26: 0 | BL26: =RANDBETWEEN($I$14,$J$14) -> 0 | BM26: =RANDBETWEEN($I$14,$J$14) -> 0
A27: 12. | B27: 68 + 85 + 30 = | G27: 17. | H27: 7 + 3 = | N27: 3 | O27: 68 | P27: 85 | Q27: 30 | R27: 17 | S27: 14 | U27: 1 | V27: 7 | W27: 3 | X27: 46 | Y27: 52 | Z27: 96 | AB27: =INDEX($AT$6:$AT$9,INDEX($AV$6:$AV$9,AR27)) -> 2 | AC27: =RANDBETWEEN($C$7*10^AX27,$D$7*10^AX27)*10^-AX27 -> 28 | AD27: =RANDBETWEEN($C$7*10^AY27,$D$7*10^AY27)*10^-AY27 -> 48 | AE27: =RANDBETWEEN($C$7*10^AZ27,$D$7*10^AZ27)*10^-AZ27 -> 42 | AF27: 25 | AG27: 58 | AI27: =INDEX($AT$6:$AT$9,INDEX($AV$6:$AV$9,BD27)) -> 1 | AJ27: 52 | AK27: 21 | AL27: 69 | AM27: 35 | AN27: 42 | AR27: =RANDBETWEEN(1,$AQ$9) -> 2 | AS27: 68 + 85 = | AT27: 85 − 68 = | AU27: 68 + 85 + 30 = | AV27: 17 · 14 = | AW27: 85 − 68 = | AX27: =RANDBETWEEN($E$7,$F$7) -> 0 | AY27: 0 | AZ27: 0 | BA27: =RANDBETWEEN($I$14,$J$14) -> 0 | BB27: 0 | BD27: =RANDBETWEEN(1,$AQ$9) -> 1 | BE27: 7 + 3 = | BF27: 7 − 3 = | BG27: 7 + 3 + 46 = | BH27: 52 · 96 = | BI27: =RANDBETWEEN($E$7,$F$7) -> 0 | BJ27: 0 | BK27: 0 | BL27: =RANDBETWEEN($I$14,$J$14) -> 0 | BM27: 0
A28: 13. | B28: 61 + 45 + 42 = | G28: 18. | H28: 30 + 93 = | N28: 3 | O28: 61 | P28: 45 | Q28: 42 | R28: 84 | S28: 37 | U28: 1 | V28: 30 | W28: 93 | X28: 86 | Y28: 24 | Z28: 43 | AB28: 3 | AC28: 91 | AD28: 29 | AE28: 37 | AF28: =RANDBETWEEN($D$13*10^BA28,$E$13*10^BA28)*10^-BA28 -> 72 | AG28: =RANDBETWEEN($D$13*10^BB28,$E$13*10^BB28)*10^-BB28 -> 39 | AI28: 3 | AJ28: 64 | AK28: 2 | AL28: 56 | AM28: 22 | AN28: 26 | AR28: =RANDBETWEEN(1,$AQ$9) -> 3 | AS28: 61 + 45 = | AT28: 61 − 45 = | AU28: 61 + 45 + 42 = | AV28: 84 · 37 = | AW28: 45 − 61 = | AX28: 0 | AY28: 0 | AZ28: 0 | BA28: 0 | BB28: 0 | BD28: =RANDBETWEEN(1,$AQ$9) -> 3 | BE28: 30 + 93 = | BF28: 93 − 30 = | BG28: 30 + 93 + 86 = | BH28: 24 · 43 = | BI28: 0 | BJ28: 0 | BK28: 0 | BL28: 0 | BM28: 0
A29: 14. | B29: 51 + 51 + 73 = | G29: 19. | H29: 46 − 27 = | N29: 3 | O29: 51 | P29: 51 | Q29: 73 | R29: 10 | S29: 31 | U29: 2 | V29: 46 | W29: 27 | X29: 41 | Y29: 55 | Z29: 55 | AB29: 1 | AC29: 83 | AD29: 36 | AE29: 82 | AF29: 30 | AG29: 18 | AI29: 1 | AJ29: 18 | AK29: 56 | AL29: 7 | AM29: 3 | AN29: 51 | AR29: =RANDBETWEEN(1,$AQ$9) -> 1 | AS29: 51 + 51 = | AT29: 51 − 51 = | AU29: 51 + 51 + 73 = | AV29: 10 · 31 = | AW29: 51 − 51 = | AX29: 0 | AY29: 0 | AZ29: 0 | BA29: 0 | BB29: 0 | BD29: =RANDBETWEEN(1,$AQ$9) -> 1 | BE29: 46 + 27 = | BF29: 46 − 27 = | BG29: 46 + 27 + 41 = | BH29: 55 · 55 = | BI29: 0 | BJ29: 0 | BK29: 0 | BL29: 0 | BM29: 0
A30: 15. | B30: 94 − 15 = | G30: 20. | H30: 88 − 35 = | N30: 2 | O30: 15 | P30: 94 | Q30: 85 | R30: 96 | S30: 80 | U30: 2 | V30: 35 | W30: 88 | X30: 9 | Y30: 95 | Z30: 26 | AB30: 1 | AC30: 75 | AD30: 92 | AE30: 2 | AF30: 26 | AG30: 46 | AI30: 3 | AJ30: 83 | AK30: 10 | AL30: 13 | AM30: 19 | AN30: 26 | AR30: =RANDBETWEEN(1,$AQ$9) -> 1 | AS30: 15 + 94 = | AT30: 94 − 15 = | AU30: 15 + 94 + 85 = | AV30: 96 · 80 = | AW30: 94 − 15 = | AX30: 0 | AY30: 0 | AZ30: 0 | BA30: 0 | BB30: 0 | BD30: =RANDBETWEEN(1,$AQ$9) -> 3 | BE30: 35 + 88 = | BF30: 88 − 35 = | BG30: 35 + 88 + 9 = | BH30: 95 · 26 = | BI30: 0 | BJ30: 0 | BK30: 0 | BL30: 0 | BM30: 0
A31: 21. | B31: 20 + 21 + 76 = | G31: 26. | H31: 80 − 69 = | M31: Sivu3 | N31: 3 | O31: 20 | P31: 21 | Q31: 76 | R31: 47 | S31: 75 | U31: 2 | V31: 80 | W31: 69 | X31: 19 | Y31: 22 | Z31: 48 | AB31: =INDEX($AT$6:$AT$9,INDEX($AW$6:$AW$9,AR31)) -> 3 | AC31: =RANDBETWEEN($C$8*10^AX31,$D$8*10^AX31)*10^-AX31 -> 23 | AD31: =RANDBETWEEN($C$8*10^AY31,$D$8*10^AY31)*10^-AY31 -> 82 | AE31: 80 | AF31: =RANDBETWEEN($D$15*10^BA31,$E$15*10^BA31)*10^-BA31 -> 22 | AG31: =RANDBETWEEN($D$15*10^BB31,$E$15*10^BB31)*10^-BB31 -> 35 | AI31: =INDEX($AT$6:$AT$9,INDEX($AW$6:$AW$9,BD31)) -> 1 | AJ31: =RANDBETWEEN($C$8*10^BI31,$D$8*10^BI31)*10^-BI31 -> 16 | AK31: 10 | AL31: 61 | AM31: =RANDBETWEEN($D$15*10^BL31,$E$15*10^BL31)*10^-BL31 -> 25 | AN31: 54 | AR31: =RANDBETWEEN(1,$AR$9) -> 3 | AS31: 20 + 21 = | AT31: 21 − 20 = | AU31: 20 + 21 + 76 = | AV31: 47 · 75 = | AW31: 21 − 20 = | AX31: =RANDBETWEEN($E$8,$F$8) -> 0 | AY31: =RANDBETWEEN($E$8,$F$8) -> 0 | AZ31: 0 | BA31: =RANDBETWEEN($I$15,$J$15) -> 0 | BB31: =RANDBETWEEN($I$15,$J$15) -> 0 | BD31: =RANDBETWEEN(1,$AR$9) -> 1 | BE31: 80 + 69 = | BF31: 80 − 69 = | BG31: 80 + 69 + 19 = | BH31: 22 · 48 = | BI31: =RANDBETWEEN($E$8,$F$8) -> 0 | BJ31: =RANDBETWEEN($E$8,$F$8) -> 0 | BK31: 0 | BL31: =RANDBETWEEN($I$15,$J$15) -> 0 | BM31: =RANDBETWEEN($I$15,$J$15) -> 0
A32: 22. | B32: 83 + 15 = | G32: 27. | H32: 77 + 85 = | N32: 1 | O32: 83 | P32: 15 | Q32: 54 | R32: 92 | S32: 49 | U32: 1 | V32: 77 | W32: 85 | X32: 71 | Y32: 54 | Z32: 86 | AB32: =INDEX($AT$6:$AT$9,INDEX($AW$6:$AW$9,AR32)) -> 2 | AC32: =RANDBETWEEN($C$8*10^AX32,$D$8*10^AX32)*10^-AX32 -> 74 | AD32: =RANDBETWEEN($C$8*10^AY32,$D$8*10^AY32)*10^-AY32 -> 85 | AE32: =RANDBETWEEN($C$8*10^AZ32,$D$8*10^AZ32)*10^-AZ32 -> 46 | AF32: =RANDBETWEEN($D$15*10^BA32,$E$15*10^BA32)*10^-BA32 -> 4 | AG32: =RANDBETWEEN($D$15*10^BB32,$E$15*10^BB32)*10^-BB32 -> 70 | AI32: =INDEX($AT$6:$AT$9,INDEX($AW$6:$AW$9,BD32)) -> 2 | AJ32: 49 | AK32: 4 | AL32: 7 | AM32: 19 | AN32: 51 | AR32: =RANDBETWEEN(1,$AR$9) -> 2 | AS32: 83 + 15 = | AT32: 83 − 15 = | AU32: 83 + 15 + 54 = | AV32: 92 · 49 = | AW32: 15 − 83 = | AX32: =RANDBETWEEN($E$8,$F$8) -> 0 | AY32: 0 | AZ32: 0 | BA32: =RANDBETWEEN($I$15,$J$15) -> 0 | BB32: 0 | BD32: =RANDBETWEEN(1,$AR$9) -> 2 | BE32: 77 + 85 = | BF32: 85 − 77 = | BG32: 77 + 85 + 71 = | BH32: 54 · 86 = | BI32: =RANDBETWEEN($E$8,$F$8) -> 0 | BJ32: 0 | BK32: 0 | BL32: =RANDBETWEEN($I$15,$J$15) -> 0 | BM32: 0
A33: 23. | B33: 56 + 48 + 70 = | G33: 28. | H33: 6 + 32 = | N33: 3 | O33: 56 | P33: 48 | Q33: 70 | R33: 53 | S33: 48 | U33: 1 | V33: 6 | W33: 32 | X33: 77 | Y33: 87 | Z33: 4 | AB33: 3 | AC33: 71 | AD33: 76 | AE33: 76 | AF33: 59 | AG33: 88 | AI33: 3 | AJ33: 73 | AK33: 48 | AL33: 18 | AM33: 30 | AN33: 20 | AR33: =RANDBETWEEN(1,$AR$9) -> 3 | AS33: 56 + 48 = | AT33: 56 − 48 = | AU33: 56 + 48 + 70 = | AV33: 53 · 48 = | AW33: 48 − 56 = | AX33: 0 | AY33: 0 | AZ33: 0 | BA33: 0 | BB33: 0 | BD33: =RANDBETWEEN(1,$AR$9) -> 3 | BE33: 6 + 32 = | BF33: 32 − 6 = | BG33: 6 + 32 + 77 = | BH33: 87 · 4 = | BI33: 0 | BJ33: 0 | BK33: 0 | BL33: 0 | BM33: 0
A34: 24. | B34: 88 + 11 = | G34: 29. | H34: 25 + 11 + 32 = | N34: 1 | O34: 88 | P34: 11 | Q34: 6 | R34: 88 | S34: 32 | U34: 3 | V34: 25 | W34: 11 | X34: 32 | Y34: 81 | Z34: 67 | AB34: 3 | AC34: 77 | AD34: 9 | AE34: 71 | AF34: 58 | AG34: 66 | AI34: 3 | AJ34: 8 | AK34: 96 | AL34: 61 | AM34: 78 | AN34: 62 | AR34: =RANDBETWEEN(1,$AR$9) -> 3 | AS34: 88 + 11 = | AT34: 88 − 11 = | AU34: 88 + 11 + 6 = | AV34: 88 · 32 = | AW34: 11 − 88 = | AX34: 0 | AY34: 0 | AZ34: 0 | BA34: 0 | BB34: 0 | BD34: =RANDBETWEEN(1,$AR$9) -> 3 | BE34: 25 + 11 = | BF34: 25 − 11 = | BG34: 25 + 11 + 32 = | BH34: 81 · 67 = | BI34: 0 | BJ34: 0 | BK34: 0 | BL34: 0 | BM34: 0
A35: 25. | B35: 53 − 10 = | G35: 30. | H35: 94 + 42 + 11 = | N35: 2 | O35: 53 | P35: 10 | Q35: 70 | R35: 98 | S35: 63 | U35: 3 | V35: 94 | W35: 42 | X35: 11 | Y35: 50 | Z35: 58 | AB35: 2 | AC35: 71 | AD35: 80 | AE35: 21 | AF35: 42 | AG35: 4 | AI35: 1 | AJ35: 92 | AK35: 53 | AL35: 19 | AM35: 20 | AN35: 69 | AR35: =RANDBETWEEN(1,$AR$9) -> 2 | AS35: 53 + 10 = | AT35: 53 − 10 = | AU35: 53 + 10 + 70 = | AV35: 98 · 63 = | AW35: 10 − 53 = | AX35: 0 | AY35: 0 | AZ35: 0 | BA35: 0 | BB35: 0 | BD35: =RANDBETWEEN(1,$AR$9) -> 1 | BE35: 94 + 42 = | BF35: 94 − 42 = | BG35: 94 + 42 + 11 = | BH35: 50 · 58 = | BI35: 0 | BJ35: 0 | BK35: 0 | BL35: 0 | BM35: 0
A36: 31. | B36: 70 + 22 = | G36: 36. | H36: 78 − 51 = | M36: Sivu4 | N36: 1 | O36: 70 | P36: 22 | Q36: 81 | R36: 60 | S36: 36 | U36: 2 | V36: 51 | W36: 78 | X36: 69 | Y36: 63 | Z36: 82 | AB36: =INDEX($AT$6:$AT$9,INDEX($AX$6:$AX$9,AR36)) -> 2 | AC36: =RANDBETWEEN($C$9*10^AX36,$D$9*10^AX36)*10^-AX36 -> 91 | AD36: =RANDBETWEEN($C$9*10^AY36,$D$9*10^AY36)*10^-AY36 -> 85 | AE36: 94 | AF36: =RANDBETWEEN($D$16*10^BA36,$E$16*10^BA36)*10^-BA36 -> 1 | AG36: 7 | AI36: =INDEX($AT$6:$AT$9,INDEX($AX$6:$AX$9,BD36)) -> 2 | AJ36: =RANDBETWEEN($C$9*10^BI36,$D$9*10^BI36)*10^-BI36 -> 77 | AK36: 91 | AL36: 92 | AM36: =RANDBETWEEN($D$16*10^BL36,$E$16*10^BL36)*10^-BL36 -> 72 | AN36: 60 | AR36: =RANDBETWEEN(1,$AS$9) -> 2 | AS36: 70 + 22 = | AT36: 70 − 22 = | AU36: 70 + 22 + 81 = | AV36: 60 · 36 = | AW36: 22 − 70 = | AX36: =RANDBETWEEN($E$9,$F$9) -> 0 | AY36: =RANDBETWEEN($E$9,$F$9) -> 0 | AZ36: 0 | BA36: =RANDBETWEEN($I$16,$J$16) -> 0 | BB36: =RANDBETWEEN($I$16,$J$16) -> 0 | BD36: =RANDBETWEEN(1,$AS$9) -> 2 | BE36: 51 + 78 = | BF36: 78 − 51 = | BG36: 51 + 78 + 69 = | BH36: 63 · 82 = | BI36: =RANDBETWEEN($E$9,$F$9) -> 0 | BJ36: =RANDBETWEEN($E$9,$F$9) -> 0 | BK36: 0 | BL36: =RANDBETWEEN($I$16,$J$16) -> 0 | BM36: =RANDBETWEEN($I$16,$J$16) -> 0
A37: 32. | B37: 3 + 78 = | G37: 37. | H37: 21 + 16 = | N37: 1 | O37: 3 | P37: 78 | Q37: 37 | R37: 44 | S37: 98 | U37: 1 | V37: 21 | W37: 16 | X37: 73 | Y37: 43 | Z37: 10 | AB37: =INDEX($AT$6:$AT$9,INDEX($AX$6:$AX$9,AR37)) -> 3 | AC37: =RANDBETWEEN($C$9*10^AX37,$D$9*10^AX37)*10^-AX37 -> 50 | AD37: =RANDBETWEEN($C$9*10^AY37,$D$9*10^AY37)*10^-AY37 -> 84 | AE37: =RANDBETWEEN($C$9*10^AZ37,$D$9*10^AZ37)*10^-AZ37 -> 30 | AF37: 20 | AG37: 79 | AI37: =INDEX($AT$6:$AT$9,INDEX($AX$6:$AX$9,BD37)) -> 2 | AJ37: 7 | AK37: 49 | AL37: 84 | AM37: 72 | AN37: 25 | AR37: =RANDBETWEEN(1,$AS$9) -> 3 | AS37: 3 + 78 = | AT37: 78 − 3 = | AU37: 3 + 78 + 37 = | AV37: 44 · 98 = | AW37: 78 − 3 = | AX37: =RANDBETWEEN($E$9,$F$9) -> 0 | AY37: 0 | AZ37: 0 | BA37: =RANDBETWEEN($I$16,$J$16) -> 0 | BB37: 0 | BD37: =RANDBETWEEN(1,$AS$9) -> 2 | BE37: 21 + 16 = | BF37: 21 − 16 = | BG37: 21 + 16 + 73 = | BH37: 43 · 10 = | BI37: =RANDBETWEEN($E$9,$F$9) -> 0 | BJ37: 0 | BK37: 0 | BL37: =RANDBETWEEN($I$16,$J$16) -> 0 | BM37: 0
A38: 33. | B38: 14 + 92 + 57 = | G38: 38. | H38: 82 + 3 = | N38: 3 | O38: 14 | P38: 92 | Q38: 57 | R38: 45 | S38: 39 | U38: 1 | V38: 82 | W38: 3 | X38: 63 | Y38: 60 | Z38: 97 | AB38: 1 | AC38: 40 | AD38: 100 | AE38: 96 | AF38: =RANDBETWEEN($D$15*10^BA38,$E$15*10^BA38)*10^-BA38 -> 81 | AG38: =RANDBETWEEN($D$15*10^BB38,$E$15*10^BB38)*10^-BB38 -> 26 | AI38: 3 | AJ38: 54 | AK38: 18 | AL38: 39 | AM38: 30 | AN38: 82 | AR38: =RANDBETWEEN(1,$AS$9) -> 1 | AS38: 14 + 92 = | AT38: 92 − 14 = | AU38: 14 + 92 + 57 = | AV38: 45 · 39 = | AW38: 92 − 14 = | AX38: 0 | AY38: 0 | AZ38: 0 | BA38: 0 | BB38: 0 | BD38: =RANDBETWEEN(1,$AS$9) -> 3 | BE38: 82 + 3 = | BF38: 82 − 3 = | BG38: 82 + 3 + 63 = | BH38: 60 · 97 = | BI38: 0 | BJ38: 0 | BK38: 0 | BL38: 0 | BM38: 0
A39: 34. | B39: 61 − 19 = | G39: 39. | H39: 64 + 57 + 68 = | N39: 2 | O39: 61 | P39: 19 | Q39: 65 | R39: 89 | S39: 12 | U39: 3 | V39: 64 | W39: 57 | X39: 68 | Y39: 80 | Z39: 28 | AB39: 3 | AC39: 42 | AD39: 1 | AE39: 93 | AF39: 49 | AG39: 76 | AI39: 1 | AJ39: 69 | AK39: 40 | AL39: 92 | AM39: 14 | AN39: 79 | AR39: =RANDBETWEEN(1,$AS$9) -> 3 | AS39: 61 + 19 = | AT39: 61 − 19 = | AU39: 61 + 19 + 65 = | AV39: 89 · 12 = | AW39: 19 − 61 = | AX39: 0 | AY39: 0 | AZ39: 0 | BA39: 0 | BB39: 0 | BD39: =RANDBETWEEN(1,$AS$9) -> 1 | BE39: 64 + 57 = | BF39: 64 − 57 = | BG39: 64 + 57 + 68 = | BH39: 80 · 28 = | BI39: 0 | BJ39: 0 | BK39: 0 | BL39: 0 | BM39: 0
A40: 35. | B40: 4 + 42 = | G40: 40. | H40: 7 + 18 + 92 = | N40: 1 | O40: 4 | P40: 42 | Q40: 95 | R40: 69 | S40: 2 | U40: 3 | V40: 7 | W40: 18 | X40: 92 | Y40: 90 | Z40: 66 | AB40: 2 | AC40: 73 | AD40: 81 | AE40: 71 | AF40: 8 | AG40: 56 | AI40: 1 | AJ40: 70 | AK40: 12 | AL40: 4 | AM40: 19 | AN40: 23 | AR40: =RANDBETWEEN(1,$AS$9) -> 2 | AS40: 4 + 42 = | AT40: 42 − 4 = | AU40: 4 + 42 + 95 = | AV40: 69 · 2 = | AW40: 42 − 4 = | AX40: 0 | AY40: 0 | AZ40: 0 | BA40: 0 | BB40: 0 | BD40: =RANDBETWEEN(1,$AS$9) -> 1 | BE40: 7 + 18 = | BF40: 18 − 7 = | BG40: 7 + 18 + 92 = | BH40: 90 · 66 = | BI40: 0 | BJ40: 0 | BK40: 0 | BL40: 0 | BM40: 0
A41: Vastaukset:
A42: 1. | B42: =INDEX(AS50:AW50,N21) -> 13 | C42: 8. | D42: =INDEX(BE52:BH52,U23) -> 22 | E42: 15. | F42: =INDEX(AS59:AW59,N30) -> 79 | G42: 22. | H42: =INDEX(AS61:AW61,N32) -> 98 | I42: 29. | J42: =INDEX(BE63:BH63,U34) -> 68 | K42: 36. | L42: =INDEX(BE65:BH65,U36) -> 27
A43: 2. | B43: =INDEX(AS51:AW51,N22) -> 25 | C43: 9. | D43: =INDEX(BE53:BH53,U24) -> 32 | E43: 16. | F43: =INDEX(BE55:BH55,U26) -> 212 | G43: 23. | H43: =INDEX(AS62:AW62,N33) -> 174 | I43: 30. | J43: =INDEX(BE64:BH64,U35) -> 147 | K43: 37. | L43: =INDEX(BE66:BH66,U37) -> 37
A44: 3. | B44: =INDEX(AS52:AW52,N23) -> 42 | C44: 10. | D44: =INDEX(BE54:BH54,U25) -> 2 | E44: 17. | F44: =INDEX(BE56:BH56,U27) -> 10 | G44: 24. | H44: =INDEX(AS63:AW63,N34) -> 99 | I44: 31. | J44: =INDEX(AS65:AW65,N36) -> 92 | K44: 38. | L44: =INDEX(BE67:BH67,U38) -> 85
A45: 4. | B45: =INDEX(AS53:AW53,N24) -> 136 | C45: 11. | D45: =INDEX(AS55:AW55,N26) -> 51 | E45: 18. | F45: =INDEX(BE57:BH57,U28) -> 123 | G45: 25. | H45: =INDEX(AS64:AW64,N35) -> 43 | I45: 32. | J45: =INDEX(AS66:AW66,N37) -> 81 | K45: 39. | L45: =INDEX(BE68:BH68,U39) -> 189
A46: 5. | B46: =INDEX(AS54:AW54,N25) -> 6 | C46: 12. | D46: =INDEX(AS56:AW56,N27) -> 183 | E46: 19. | F46: =INDEX(BE58:BH58,U29) -> 19 | G46: 26. | H46: =INDEX(BE60:BH60,U31) -> 11 | I46: 33. | J46: =INDEX(AS67:AW67,N38) -> 163 | K46: 40. | L46: =INDEX(BE69:BH69,U40) -> 117
A47: 6. | B47: =INDEX(BE50:BH50,U21) -> 152 | C47: 13. | D47: =INDEX(AS57:AW57,N28) -> 148 | E47: 20. | F47: =INDEX(BE59:BH59,U30) -> 53 | G47: 27. | H47: =INDEX(BE61:BH61,U32) -> 162 | I47: 34. | J47: =INDEX(AS68:AW68,N39) -> 42
A48: 7. | B48: =INDEX(BE51:BH51,U22) -> 149 | C48: 14. | D48: =INDEX(AS58:AW58,N29) -> 175 | E48: 21. | F48: =INDEX(AS60:AW60,N31) -> 117 | G48: 28. | H48: =INDEX(BE62:BH62,U33) -> 38 | I48: 35. | J48: =INDEX(AS69:AW69,N40) -> 46
A49: Tulostuva alue loppuu | AS49: Vastaukset | BE49: Vastaukset
AS50: =O21+P21 -> 71 | AT50: =ABS(O21-P21) -> 13 | AU50: =O21+P21+Q21 -> 105 | AV50: =R21*S21 -> 6952 | AW50: =P21-O21 -> 13 | BE50: =V21+W21 -> 152 | BF50: =ABS(V21-W21) -> 48 | BG50: =V21+W21+X21 -> 250 | BH50: =Y21*Z21 -> 5916
AS51: 131 | AT51: 25 | AU51: 209 | AV51: 2550 | AW51: -25 | BE51: 149 | BF51: 25 | BG51: 247 | BH51: 2700
AS52: 158 | AT52: 42 | AU52: 192 | AV52: 1980 | AW52: 42 | BE52: 34 | BF52: 22 | BG52: 63 | BH52: 4864
AS53: 136 | AT53: 16 | AU53: 177 | AV53: 4977 | AW53: 16 | BE53: 70 | BF53: 32 | BG53: 149 | BH53: 20
AS54: 64 | AT54: 6 | AU54: 147 | AV54: 2576 | AW54: 6 | BE54: 146 | BF54: 2 | BG54: 171 | BH54: 2584
AS55: 145 | AT55: 51 | AU55: 146 | AV55: 6510 | AW55: -51 | BE55: 131 | BF55: 1 | BG55: 212 | BH55: 403
AS56: 153 | AT56: 17 | AU56: 183 | AV56: 238 | AW56: 17 | BE56: 10 | BF56: 4 | BG56: 56 | BH56: 4992
AS57: 106 | AT57: 16 | AU57: 148 | AV57: 3108 | AW57: -16 | BE57: 123 | BF57: 63 | BG57: 209 | BH57: 1032
AS58: 102 | AT58: 0 | AU58: 175 | AV58: 310 | AW58: 0 | BE58: 73 | BF58: 19 | BG58: 114 | BH58: 3025
AS59: 109 | AT59: 79 | AU59: 194 | AV59: 7680 | AW59: 79 | BE59: 123 | BF59: 53 | BG59: 132 | BH59: 2470
AS60: 41 | AT60: 1 | AU60: 117 | AV60: 3525 | AW60: 1 | BE60: 149 | BF60: 11 | BG60: 168 | BH60: 1056
AS61: 98 | AT61: 68 | AU61: 152 | AV61: 4508 | AW61: -68 | BE61: 162 | BF61: 8 | BG61: 233 | BH61: 4644
AS62: 104 | AT62: 8 | AU62: 174 | AV62: 2544 | AW62: -8 | BE62: 38 | BF62: 26 | BG62: 115 | BH62: 348
AS63: 99 | AT63: 77 | AU63: 105 | AV63: 2816 | AW63: -77 | BE63: 36 | BF63: 14 | BG63: 68 | BH63: 5427
AS64: 63 | AT64: 43 | AU64: 133 | AV64: 6174 | AW64: -43 | BE64: 136 | BF64: 52 | BG64: 147 | BH64: 2900
AS65: 92 | AT65: 48 | AU65: 173 | AV65: 2160 | AW65: -48 | BE65: 129 | BF65: 27 | BG65: 198 | BH65: 5166
AS66: 81 | AT66: 75 | AU66: 118 | AV66: 4312 | AW66: 75 | BE66: 37 | BF66: 5 | BG66: 110 | BH66: 430
AS67: 106 | AT67: 78 | AU67: 163 | AV67: 1755 | AW67: 78 | BE67: 85 | BF67: 79 | BG67: 148 | BH67: 5820
AS68: 80 | AT68: 42 | AU68: 145 | AV68: 1068 | AW68: -42 | BE68: 121 | BF68: 7 | BG68: 189 | BH68: 2240
AS69: 46 | AT69: 38 | AU69: 141 | AV69: 138 | AW69: 38 | BE69: 25 | BF69: 11 | BG69: 117 | BH69: 5940
